lending/lending_fUSD_20240110
["ID","MTS","AMOUNT","RATE_DAILY","PERIOD"]
[311086962,1704900672759,-766.49,0.00031232,2]
[311086963,1704900672769,-714.61,0.00031232,2]
[311086964,1704900672781,-1425.14,0.00031232,2]
[311086965,1704900672790,-2002.23,0.00031232,2]
[311086966,1704900672799,-1479.95,0.00031232,2]
[311086967,1704900672809,-651.45,0.00031232,2]
[311086968,1704900672818,-2937.34,0.00031232,2]
[311086969,1704900672828,-1124.46,0.00031232,2]
[311086970,1704900672838,-979.93,0.00031232,2]
[311086971,1704900672848,-295.78855077,0.00031232,2]
[311086972,1704900672858,-800.83,0.00031232,2]
[311086973,1704900672867,-667.52,0.00031232,2]
[311086974,1704900672877,-53.03029588,0.00031232,2]
[311086975,1704900672889,-700.44970412,0.00031232,2]
[311086976,1704900672899,-29.46681685,0.00031232,2]
[311086977,1704900672911,-550.11318315,0.00031232,2]
[311086978,1704900672921,-342.56458846,0.00031232,2]
[311086979,1704900672936,-519.60541154,0.00031232,2]
[311086980,1704900672946,-500.0,0.00031232,2]
[311086981,1704900672955,-1993.36762003,0.00031232,2]
[311086982,1704900672967,-345.14447152,0.00031232,2]
[311086983,1704900672978,-560.05790845,0.00031232,2]
[311086984,1704900672988,-363.20389155,0.00031232,2]
[311086985,1704900673000,-136.79610845,0.00031232,2]
[311086986,1704900673010,-508.97581794,0.00031232,2]
[311086987,1704900673022,-757.54418206,0.00031232,2]
[311086988,1704900673033,-588.55,0.00031232,2]
[311086989,1704900673043,-98.73984497,0.00031232,2]
[311086990,1704900673054,-401.26015503,0.00031232,2]
[311086991,1704900673064,-500.0,0.00031232,2]
[311086992,1704900673073,-900.93905333,0.00031232,2]
[311086993,1704900673096,-54.25094667,0.00031232,2]
[311086994,1704900673106,-685.11,0.00031232,2]
[311086995,1704900673115,-4860.5,0.00031232,2]
[311086996,1704900673125,-2271.39,0.00031232,2]
[311086997,1704900673134,-500.0,0.00031232,2]
[311086998,1704900673143,-466.38951827,0.00031232,2]
[311086999,1704900673155,-33.61048173,0.00031232,2]
[311087000,1704900673165,-151.0,0.00031232,7]
[311087001,1704900673174,-169.711764,0.00031232,7]
[311087002,1704900673185,-151.0,0.00031232,7]
[311087003,1704900673194,-151.0,0.00031232,7]
[311087004,1704900673204,-205.0,0.00031292,12]
[311087005,1704900673214,-343.0,0.000313,2]
[311087006,1704900673224,-1000.0,0.000313,2]
[311087007,1704900673234,-500.0,0.00031319,2]
[311087008,1704900673244,-412.87,0.0003135,2]
[311087009,1704900673254,-474.91,0.00031451,2]
[311087010,1704900673263,-407.77,0.00031451,2]
[311087011,1704900673273,-150.0,0.00031451,2]
[311087012,1704900673284,-264.08,0.00031451,2]
[311087013,1704900673294,-181.06,0.00031451,2]
[311087014,1704900673305,-150.0,0.00031451,2]
[311087015,1704900673314,-300.0,0.00031451,2]
[311087016,1704900673324,-150.0,0.00031451,2]
[311087017,1704900673333,-150.0,0.00031451,2]
[311087018,1704900673342,-150.0,0.0003149,2]
[311087019,1704900673352,-40000.0,0.000315,2]
[311087020,1704900673361,-184.53,0.000315,7]
[311087021,1704900673371,-184.53,0.000315,7]
[311087022,1704900673381,-329.09982,0.000315,7]
[311087023,1704900673391,-329.09982,0.000315,7]
[311087024,1704900673400,-4879.935319,0.000315,7]
[311087025,1704900673413,-4879.935319,0.000315,7]
[311087026,1704900673423,-649.73,0.00031506,2]
[311087027,1704900673433,-500.0,0.00031506,2]
[311087028,1704900673442,-500.0,0.00031506,2]
[311087029,1704900673453,-500.0,0.00031506,2]
[311087030,1704900673462,-500.0,0.00031506,2]
[311087031,1704900673471,-500.0,0.00031506,2]
[311087032,1704900673481,-500.0,0.00031506,2]
[311087033,1704900673492,-396.97251771,0.00031506,2]
[311087034,1704900673501,-500.0,0.00031506,2]
[311087035,1704900673511,-500.0,0.00031506,2]
[311087036,1704900673520,-1021.1,0.00031506,2]
[311087037,1704900673533,-500.0,0.00031506,2]
[311087038,1704900673542,-304.7131764,0.00031506,2]
[311087039,1704900673553,-500.0,0.00031506,2]
[311087040,1704900673562,-500.0,0.00031506,2]
[311087041,1704900673572,-500.0,0.00031506,2]
[311087042,1704900673582,-496.18915625,0.00031506,2]
[311087043,1704900673592,-500.0,0.00031506,2]
[311087044,1704900673601,-500.0,0.00031506,2]
[311087045,1704900673610,-500.0,0.00031506,2]
[311087046,1704900673620,-515.37103118,0.00031506,2]
[311087047,1704900673629,-500.0,0.00031506,2]
[311087048,1704900673639,-500.0,0.00031506,2]
[311087049,1704900673648,-500.0,0.00031506,2]
[311087050,1704900673658,-735.94,0.00031506,2]
[311087051,1704900673667,-500.0,0.00031506,2]
[311087052,1704900673677,-655.58,0.00031506,2]
[311087053,1704900673686,-500.0,0.00031506,2]
[311087054,1704900673696,-500.0,0.00031506,2]
[311087055,1704900673706,-991.96,0.00031506,2]
[311087056,1704900673715,-500.0,0.00031506,2]
[311087057,1704900673725,-580.21,0.00031506,2]
[311087058,1704900673734,-500.0,0.00031506,2]
[311087059,1704900673744,-500.0,0.00031506,2]
[311087060,1704900673753,-500.0,0.00031506,2]
[311087061,1704900673763,-500.0,0.00031506,2]
[311087062,1704900673772,-612.21,0.00031506,2]
[311087063,1704900673783,-460.98280689,0.00031506,2]
[311087064,1704900673793,-500.0,0.00031506,2]
[311087065,1704900673802,-500.0,0.00031506,2]
[311087066,1704900673813,-500.0,0.00031506,2]
[311087067,1704900673822,-170.01527719,0.00031506,2]
[311087068,1704900673833,-500.0,0.00031506,2]
[311087069,1704900673842,-640.83884377,0.00031506,2]
[311087070,1704900673852,-500.0,0.00031506,2]
[311087071,1704900673862,-500.0,0.00031506,2]
[311087072,1704900673871,-500.0,0.00031506,2]
[311087073,1704900673881,-500.0,0.00031506,2]
[311087074,1704900673891,-162.95360672,0.00031506,2]
[311087075,1704900673900,-1525.56,0.00031506,2]
[311087076,1704900673910,-500.0,0.00031506,2]
[311087077,1704900673919,-500.0,0.00031506,2]
[311087078,1704900673929,-728.56,0.00031506,2]
[311087079,1704900673938,-1118.0,0.00031506,2]
[311087080,1704900673947,-500.0,0.00031506,4]
[311087081,1704900673957,-515.88,0.00031506,2]
[311087082,1704900673967,-500.0,0.00031506,2]
[311087083,1704900673976,-500.0,0.00031506,2]
[311087084,1704900673986,-500.0,0.00031506,2]
[311087085,1704900673996,-500.0,0.00031506,2]
[311087086,1704900674005,-500.0,0.00031506,2]
[311087087,1704900674014,-500.0,0.00031506,2]
[311087088,1704900674023,-500.0,0.00031506,2]
[311087089,1704900674034,-462.55971404,0.00031506,2]
[311087090,1704900674044,-500.0,0.00031506,2]
[311087091,1704900674053,-500.0,0.00031506,2]
[311087092,1704900674062,-500.0,0.00031506,2]
[311087093,1704900674072,-500.0,0.00031506,2]
[311087094,1704900674081,-190.60566375,0.00031506,2]
[311087095,1704900674091,-500.0,0.00031506,2]
[311087096,1704900674100,-500.0,0.00031506,2]
[311087097,1704900674110,-440.56644094,0.00031506,2]
[311087098,1704900674120,-500.0,0.00031506,2]
[311087099,1704900674129,-500.0,0.00031506,2]
[311087100,1704900674139,-2525.24,0.00031506,2]
[311087101,1704900674148,-500.0,0.00031506,2]
[311087102,1704900674158,-500.0,0.00031506,2]
[311087103,1704900674168,-500.0,0.00031506,2]
[311087104,1704900674178,-592.83457388,0.00031506,2]
[311087105,1704900674188,-500.0,0.00031506,2]
[311087106,1704900674198,-500.0,0.00031506,2]
[311087107,1704900674209,-500.0,0.00031506,2]
[311087108,1704900674219,-500.0,0.00031506,2]
[311087109,1704900674228,-500.0,0.00031506,2]
[311087110,1704900674238,-230.43621743,0.00031506,2]
[311087111,1704900674247,-500.0,0.00031506,2]
[311087112,1704900674257,-1570.45,0.00031506,2]
[311087113,1704900674267,-500.0,0.00031506,2]
[311087114,1704900674278,-307.65684012,0.00031506,2]
[311087115,1704900674287,-500.0,0.00031506,2]
[311087116,1704900674297,-500.0,0.00031506,2]
[311087117,1704900674306,-500.0,0.00031506,2]
[311087118,1704900674316,-328.51183247,0.00031506,2]
[311087119,1704900674326,-635.68,0.00031506,2]
[311087120,1704900674336,-500.0,0.00031506,2]
[311087121,1704900674346,-549.14,0.00031506,2]
[311087122,1704900674355,-500.0,0.00031506,2]
[311087123,1704900674365,-1087.18,0.00031506,2]
[311087124,1704900674376,-500.0,0.00031506,2]
[311087125,1704900674385,-500.0,0.00031506,2]
[311087126,1704900674394,-250.3590504,0.00031506,2]
[311087127,1704900674404,-1006.97,0.00031506,2]
[311087128,1704900674413,-500.0,0.00031506,2]
[311087129,1704900674423,-500.0,0.00031506,2]
[311087130,1704900674432,-500.0,0.00031506,2]
[311087131,1704900674442,-500.0,0.00031506,2]
[311087132,1704900674451,-500.0,0.00031506,2]
[311087133,1704900674460,-821.81,0.00031506,2]
[311087134,1704900674470,-500.0,0.00031506,2]
[311087135,1704900674479,-652.25,0.00031506,2]
[311087136,1704900674489,-500.0,0.00031506,2]
[311087137,1704900674498,-500.0,0.00031506,2]
[311087138,1704900674508,-500.0,0.00031506,2]
[311087139,1704900674517,-500.0,0.00031506,2]
[311087140,1704900674528,-500.0,0.00031506,2]
[311087141,1704900674538,-804.63,0.00031506,2]
[311087142,1704900674548,-413.1341133,0.00031506,2]
[311087143,1704900674558,-734.66,0.00031506,2]
[311087144,1704900674569,-500.0,0.00031506,2]
[311087145,1704900674578,-500.0,0.00031506,2]
[311087146,1704900674588,-500.0,0.00031506,2]
[311087147,1704900674598,-312.97291838,0.00031506,2]
[311087148,1704900674607,-573.75380649,0.00031506,2]
[311087149,1704900674617,-500.0,0.00031506,2]
[311087150,1704900674627,-942.99,0.00031506,2]
[311087151,1704900674637,-500.0,0.00031506,2]
[311087152,1704900674646,-500.0,0.00031506,2]
[311087153,1704900674656,-216.51402143,0.00031506,2]
[311087154,1704900674666,-286.14869368,0.00031506,2]
[311087155,1704900674676,-197.31945429,0.00031506,2]
[311087156,1704900674685,-500.0,0.00031506,2]
[311087157,1704900674695,-500.0,0.00031506,2]
[311087158,1704900674706,-500.0,0.00031506,2]
[311087159,1704900674715,-500.0,0.00031506,2]
[311087160,1704900674725,-500.0,0.00031506,2]
[311087161,1704900674735,-500.0,0.00031506,2]
[311087162,1704900674745,-477.0075543,0.00031506,2]
[311087163,1704900674756,-500.0,0.00031506,2]
[311087164,1704900674766,-500.0,0.00031506,2]
[311087165,1704900674777,-500.0,0.00031506,2]
[311087166,1704900674787,-226.62034683,0.00031506,2]
[311087167,1704900674797,-613.30182724,0.00031506,2]
[311087168,1704900674990,-500.0,0.00031506,2]
[311087169,1704900675027,-500.0,0.00031506,2]
[311087170,1704900675036,-440.70437551,0.00031506,2]
[311087171,1704900675045,-500.0,0.00031506,2]
[311087172,1704900675055,-500.0,0.00031506,2]
[311087173,1704900675064,-1066.85,0.00031506,2]
[311087174,1704900675073,-581.18387484,0.00031506,2]
[311087175,1704900675082,-500.0,0.00031506,2]
[311087176,1704900675092,-500.0,0.00031506,2]
[311087177,1704900675102,-694.05,0.00031506,2]
[311087178,1704900675112,-347.88412456,0.00031506,2]
[311087179,1704900675121,-150.0,0.00031506,2]
[311087180,1704900675130,-500.0,0.00031506,2]
[311087181,1704900675141,-500.0,0.00031506,2]
[311087182,1704900675150,-500.0,0.00031506,2]
[311087183,1704900675159,-500.0,0.00031506,2]
[311087184,1704900675168,-500.0,0.00031506,2]
[311087185,1704900675178,-500.0,0.00031506,2]
[311087186,1704900675187,-500.0,0.00031506,2]
[311087187,1704900675196,-371.85320244,0.00031506,2]
[311087188,1704900675205,-183.29940336,0.00031506,2]
[311087189,1704900675216,-500.0,0.00031506,2]
[311087190,1704900675225,-500.0,0.00031506,2]
[311087191,1704900675234,-578.85708626,0.00031506,2]
[311087192,1704900675243,-285.70422609,0.00031506,2]
[311087193,1704900675253,-500.0,0.00031506,2]
[311087194,1704900675263,-293.81864366,0.00031506,2]
[311087195,1704900675272,-504.81,0.00031506,2]
[311087196,1704900675284,-263.74158795,0.00031506,2]
[311087197,1704900675293,-500.0,0.00031506,2]
[311087198,1704900675303,-167.10440387,0.00031506,2]
[311087199,1704900675312,-500.0,0.00031506,2]
[311087200,1704900675322,-897.0,0.00031506,2]
[311087201,1704900675331,-1597.96,0.00031506,2]
[311087202,1704900675340,-609.86,0.00031506,2]
[311087203,1704900675349,-500.0,0.00031506,2]
[311087204,1704900675359,-500.0,0.00031506,2]
[311087205,1704900675368,-500.0,0.00031506,2]
[311087206,1704900675377,-500.0,0.00031506,2]
[311087207,1704900675387,-500.0,0.00031506,2]
[311087208,1704900675397,-500.0,0.00031506,2]
[311087209,1704900675410,-500.0,0.00031506,2]
[311087210,1704900675419,-500.0,0.00031506,2]
[311087211,1704900675428,-269.34885811,0.00031506,2]
[311087212,1704900675438,-500.0,0.00031506,2]
[311087213,1704900675447,-500.0,0.00031506,2]
[311087214,1704900675456,-500.0,0.00031506,2]
[311087215,1704900675465,-625.42,0.00031506,2]
[311087216,1704900675475,-500.0,0.00031506,2]
[311087217,1704900675487,-500.0,0.00031506,2]
[311087218,1704900675496,-1088.6,0.00031506,2]
[311087219,1704900675506,-500.0,0.00031506,2]
[311087220,1704900675515,-500.0,0.00031506,2]
[311087221,1704900675524,-785.49,0.00031506,2]
[311087222,1704900675536,-975.89,0.00031506,2]
[311087223,1704900675546,-500.0,0.00031506,2]
[311087224,1704900675555,-500.0,0.00031506,2]
[311087225,1704900675565,-500.0,0.00031506,2]
[311087226,1704900675575,-1671.48,0.00031506,2]
[311087227,1704900675585,-500.0,0.00031506,2]
[311087228,1704900675595,-1079.69,0.00031506,2]
[311087229,1704900675604,-500.0,0.00031506,2]
[311087230,1704900675614,-500.0,0.00031506,2]
[311087231,1704900675624,-1708.78,0.00031506,2]
[311087232,1704900675634,-500.0,0.00031506,2]
[311087233,1704900675643,-599.79721076,0.00031506,2]
[311087234,1704900675652,-500.0,0.00031506,2]
[311087235,1704900675662,-12281.0,0.00031506,2]
[311087236,1704900675672,-500.0,0.00031506,2]
[311087237,1704900675682,-500.0,0.00031506,2]
[311087238,1704900675691,-782.34,0.00031506,2]
[311087239,1704900675701,-500.0,0.00031506,2]
[311087240,1704900675711,-4515.22,0.00031506,2]
[311087241,1704900675721,-500.0,0.00031506,2]
[311087242,1704900675731,-500.0,0.00031506,2]
[311087243,1704900675741,-8836.14,0.00031506,2]
[311087244,1704900675750,-707.11,0.00031506,2]
[311087245,1704900675761,-500.0,0.00031506,2]
[311087246,1704900675770,-500.0,0.00031506,2]
[311087247,1704900675781,-884.97,0.00031506,2]
[311087248,1704900675791,-2259.76,0.00031506,2]
[311087249,1704900675801,-616.1,0.00031506,2]
[311087250,1704900675810,-500.0,0.00031506,2]
[311087251,1704900675821,-3899.84,0.00031506,2]
[311087252,1704900675831,-500.0,0.00031506,2]
[311087253,1704900675841,-500.0,0.00031506,2]
[311087254,1704900675850,-500.0,0.00031506,2]
[311087255,1704900675860,-500.0,0.00031506,2]
[311087256,1704900675869,-615.33,0.00031506,2]
[311087257,1704900675879,-4323.21,0.00031506,2]
[311087258,1704900675888,-1420.6,0.00031506,2]
[311087259,1704900675897,-500.0,0.00031506,2]
[311087260,1704900675906,-500.0,0.00031506,2]
[311087261,1704900675916,-2046.46,0.00031506,2]
[311087262,1704900675926,-4599.5,0.00031506,2]
[311087263,1704900675935,-712.95,0.00031506,2]
[311087264,1704900675944,-500.0,0.00031506,2]
[311087265,1704900675954,-456.91596325,0.00031506,2]
[311087266,1704900675964,-2281.05,0.00031506,2]
[311087267,1704900675974,-795.41,0.00031506,2]
[311087268,1704900675983,-2521.56,0.00031506,2]
[311087269,1704900675993,-500.0,0.00031506,2]
[311087270,1704900676002,-843.45,0.00031506,2]
[311087271,1704900676011,-500.0,0.00031506,2]
[311087272,1704900676020,-500.0,0.00031506,2]
[311087273,1704900676033,-500.0,0.00031506,2]
[311087274,1704900676042,-732.44,0.00031506,2]
[311087275,1704900676052,-870.26,0.00031506,2]
[311087276,1704900676061,-1564.13,0.00031506,2]
[311087277,1704900676071,-500.0,0.00031506,2]
[311087278,1704900676081,-500.0,0.00031506,2]
[311087279,1704900676090,-627.62,0.00031506,2]
[311087280,1704900676099,-1143.64,0.00031506,2]
[311087281,1704900676110,-1380.85,0.00031506,2]
[311087282,1704900676119,-500.0,0.00031506,2]
[311087283,1704900676129,-500.0,0.00031506,2]
[311087284,1704900676138,-534.74218921,0.00031506,2]
[311087285,1704900676148,-500.0,0.00031506,2]
[311087286,1704900676158,-1618.66,0.00031506,2]
[311087287,1704900676167,-1036.15,0.00031506,2]
[311087288,1704900676176,-5122.92792675,0.00031506,2]
[311087289,1704900676227,-774.92228259,0.00031506,2]
[311087290,1704900676239,-394.75448189,0.00031506,2]
[311087291,1704900676250,-831.41,0.00031506,2]
[311087292,1704900676262,-818.88,0.00031506,2]
[311087293,1704900676274,-257.60009668,0.00031506,2]
[311087294,1704900676290,-300.0,0.00031506,2]
[311087295,1704900676303,-451.22,0.00031506,2]
[311087296,1704900676315,-796.34521209,0.00031506,2]
[311087297,1704900676324,-500.0,0.00031506,2]
[311087298,1704900676333,-566.17,0.00031506,2]
[311087299,1704900676343,-299.0,0.00031506,2]
[311087300,1704900676352,-91.18478791,0.00031506,2]
[311087301,1704900910028,24472.94,0.00031,30]
[311087302,1704901053233,245.0,0.00025,24]
[311087303,1704901324388,205.0,0.00022912,2]
[311087456,1704901832036,-155.0,0.00023093,2]
[311087458,1704901832045,-339.16,0.00023094,2]
[311087459,1704901832057,-300.0,0.00023706,2]
[311087460,1704901832066,-29.84,0.00023806,2]
[311087461,1704901832085,-232.8179,0.00023806,2]
[311087462,1704901832094,-151.1821,0.0002381,2]
[311087463,1704901834034,-496.13680931,0.0002381,2]
[311087464,1704901834043,-727.92,0.00023912,2]
[311087465,1704901834054,-716.21,0.00024042,2]
[311087466,1704901834063,-709.63,0.00024259,2]
[311087467,1704901834073,-150.0,0.000243,2]
[311087468,1704901834083,-301.48,0.00024552,2]
[311087469,1704901834093,-300.0,0.00024606,2]
[311087470,1704901834103,-83.90103652,0.00024606,2]
[311087471,1704901834114,-66.09896348,0.00024606,2]
[311087472,1704901834125,-723.39,0.00024607,2]
[311087473,1704901834134,-3668.00923324,0.00024658,2]
[311087485,1704901838112,-543.68032293,0.00023809,2]
[311087486,1704901838178,-2410.01001848,0.00023809,2]
[311087487,1704901839437,-358.71,0.00023809,2]
[311087488,1704901839511,-2122.65340443,0.00023809,2]
[311087489,1704901839521,-1331.99076676,0.00024658,2]
[311087490,1704901839531,-250.0,0.00024925,2]
[311087491,1704901839541,-184.24,0.0002494,2]
[311087492,1704901839550,-2000.0,0.00025,2]
[311087493,1704901839559,-350.0,0.00025,3]
[311087494,1704901839569,-150.0,0.00025,2]
[311087495,1704901839578,-150.0,0.00025,2]
[311087496,1704901839588,-150.0,0.00025,2]
[311087497,1704901839597,-150.0,0.00025,2]
[311087498,1704901839607,-356.04016405,0.00025,2]
[311087499,1704901839617,-402.38536975,0.00025,2]
[311087500,1704901839627,-206.0,0.00025003,2]
[311087501,1704901839636,-450.0,0.0002502,3]
[311087502,1704901839646,-1004.65788118,0.00025022,2]
[311087503,1704901839656,-429.08,0.00025038,2]
[311087504,1704901839665,-500.0,0.00025064,2]
[311087505,1704901839674,-436.17,0.0002508,2]
[311087506,1704901839684,-150.0,0.000251,2]
[311087507,1704901839693,-150.0,0.000251,2]
[311087508,1704901839702,-407.77,0.000251,2]
[311087509,1704901839712,-313.99,0.000251,2]
[311087511,1704901839722,-150.0,0.000251,2]
[311087512,1704901839733,-313.99,0.000251,2]
[311087514,1704901839742,-300.0,0.000251,2]
[311087516,1704901839751,-407.77,0.000251,2]
[311087518,1704901839760,-150.0,0.000251,2]
[311087520,1704901839768,-407.77,0.000251,2]
[311087522,1704901839777,-150.0,0.000251,2]
[311087524,1704901839787,-407.77,0.000251,2]
[311087526,1704901839796,-150.0,0.000251,2]
[311087528,1704901839806,-407.77,0.000251,2]
[311087530,1704901839815,-150.0,0.000251,2]
[311087532,1704901839825,-407.77,0.000251,2]
[311087534,1704901839835,-150.0,0.000251,2]
[311087536,1704901839844,-407.77,0.000251,2]
[311087539,1704901839861,-407.77,0.000251,2]
[311087542,1704901839875,-407.77,0.000251,2]
[311087544,1704901839886,-150.0,0.000251,2]
[311087546,1704901839897,-407.77,0.000251,2]
[311087548,1704901839907,-150.0,0.000251,2]
[311087550,1704901839916,-407.77,0.000251,2]
[311087552,1704901839926,-407.77,0.000251,2]
[311087554,1704901839937,-150.0,0.000251,2]
[311087557,1704901839947,-407.77,0.000251,2]
[311087560,1704901839957,-150.0,0.000251,2]
[311087562,1704901839967,-407.77,0.000251,2]
[311087564,1704901839980,-407.77,0.000251,2]
[311087566,1704901839989,-150.0,0.000251,2]
[311087568,1704901839998,-150.0,0.000251,2]
[311087570,1704901840009,-642.28,0.000251,2]
[311087572,1704901840019,-150.0,0.000251,2]
[311087574,1704901840028,-278.48,0.000251,2]
[311087576,1704901840038,-178.95,0.000251,2]
[311087578,1704901840048,-150.0,0.000251,2]
[311087581,1704901840059,-150.0,0.000251,2]
[311087583,1704901840068,-150.0,0.000251,2]
[311087585,1704901840078,-21895.21566603,0.00025122,2]
[311087587,1704901840092,-1994.78433397,0.00025122,2]
[311087589,1704901840101,-154.3,0.00025219,2]
[311087591,1704901840111,-167.06,0.00025313,2]
[311087593,1704901840121,-339.16,0.00025358,2]
[311087595,1704901840130,-332.08,0.00025547,2]
[311087597,1704901840141,-156.97,0.00025551,2]
[311087599,1704901840150,-332.08,0.00025681,2]
[311087601,1704901840161,-725.52,0.0002575,2]
[311087603,1704901840170,-5000.0,0.00025752,2]
[311087606,1704901840180,-332.08,0.00025816,2]
[311087608,1704901840190,-14938.90566603,0.000259,2]
[311087610,1704901840206,-9969.09433397,0.000259,2]
[311087612,1704901840215,-332.08,0.0002595,2]
[311087614,1704901840225,-481.2212,0.00025985,2]
[311087617,1704901840237,-429.08,0.00026016,2]
[311087619,1704901840246,-150.0,0.00026079,2]
[311087621,1704901840256,-332.08,0.00026085,2]
[311087623,1704901840266,-155.0,0.00026098,2]
[311087625,1704901840275,-332.08,0.00026219,2]
[311087627,1704901840284,-332.08,0.00026354,2]
[311087629,1704901840294,-332.08,0.00026488,2]
[311087631,1704901840303,-2917.4862,0.00026523,2]
[311087633,1704901840312,-154.3,0.00026533,2]
[311087635,1704901840321,-1392.93,0.00026575,2]
[311087637,1704901840331,-1453.54,0.00026575,2]
[311087639,1704901840340,-1009.90501626,0.00026623,5]
[311087641,1704901840349,-332.08,0.00026623,2]
[311087685,1704901840740,-332.08,0.00026757,2]
[311087687,1704901840750,-320.34910649,0.00026819,2]
[311087689,1704901840760,-332.08,0.00026892,2]
[311087691,1704901840770,-429.08,0.00026995,2]
[311087693,1704901840779,-400.0,0.00027,3]
[311087695,1704901840789,-332.08,0.00027026,2]
[311087697,1704901840798,-332.08,0.00027161,2]
[311087699,1704901840807,-2091.17981749,0.0002717,28]
[311087701,1704901840818,-1004.65788118,0.00027192,2]
[311087703,1704901840827,-2283.65,0.00027193,2]
[311087706,1704901840837,-634.40326017,0.00027194,3]
[311087708,1704901840847,-493.17943564,0.0002729,2]
[311087710,1704901840857,-60422.65490763,0.00027292,2]
[311087713,1704901840877,-2449.91197021,0.00027292,2]
[311087715,1704901840890,-1759.36689829,0.00027292,2]
[311087718,1704901840906,-1077.13468304,0.00027292,2]
[311087742,1704901841140,-296.41613783,0.00027292,2]
[311087745,1704901841152,-2487.15021336,0.00027292,2]
[311087798,1704901841657,-23097.23296131,0.00027292,2]
[311087800,1704901841666,-1055333.31544106,0.00027292,2]
[311087802,1704901841675,-673.9866,0.00027293,2]
[311087806,1704901841696,-195610.1773,0.00027293,2]
[311087808,1704901841707,-1000.0,0.00027294,2]
[311087810,1704901841717,-332.08,0.00027295,2]
[311087812,1704901841727,-2500.0,0.00027397,4]
[311087814,1704901841739,-250.0,0.00027397,2]
[311087816,1704901841750,-1552.39,0.00027397,10]
[311087818,1704901841760,-1711.79,0.00027397,10]
[311087820,1704901841770,-1426.49,0.00027397,10]
[311087823,1704901841779,-332.08,0.00027429,2]
[311087825,1704901841789,-184.24,0.00027434,2]
[311087827,1704901841799,-450.0,0.000275,3]
[311087829,1704901841809,-6990.08498374,0.00027564,6]
[311087831,1704901841819,-332.08,0.00027564,2]
[311087833,1704901841829,-155.21988042,0.00027614,2]
[311087835,1704901841838,-339.16,0.00027622,2]
[311087837,1704901841848,-332.08,0.00027698,2]
[311087839,1704901841858,-563.83,0.00027758,2]
[311087841,1704901841868,-332.08,0.00027833,2]
[311087843,1704901841877,-1028.0,0.00027963,2]
[311087845,1704901841887,-332.08,0.00027967,2]
[311087847,1704901841897,-429.08,0.00027973,2]
[311087849,1704901841907,-332.08,0.00028102,2]
[311087851,1704901841916,-634.4032601,0.00028152,4]
[311087853,1704901841926,-206.0,0.00028184,7]
[311087855,1704901841935,-262.7,0.0002821,2]
[311087857,1704901841945,-436.17,0.00028215,2]
[311087859,1704901841955,-5000.0,0.00028352,2]
[311087861,1704901841966,-400.0,0.000289,10]
[311087863,1704901841977,-4153.6252953,0.000289,2]
[311087865,1704901841988,-1629.14913512,0.000289,2]
[311087868,1704901841997,-187.53052007,0.000289,5]
[311087869,1704901842007,-333.99699938,0.000289,2]